fUST/lending_fUST_20250903
["ID","MTS","AMOUNT","RATE_DAILY","PERIOD"]
[383258892,1756895446325,-480.0,0.00014246,2]
[383258894,1756895446335,-480.0,0.00014246,2]
[383258896,1756895446344,-480.0,0.00014246,2]
[383258898,1756895446357,-480.0,0.00014246,2]
[383258900,1756895446367,-480.0,0.00014246,2]
[383258902,1756895446376,-480.0,0.00014246,2]
[383258904,1756895446387,-480.0,0.00014246,2]
[383258906,1756895446396,-950.45,0.00014246,2]
[383258907,1756895446405,-480.0,0.00014246,2]
[383258909,1756895446414,-480.0,0.00014246,2]
[383258911,1756895446423,-480.0,0.00014246,2]
[383258913,1756895446432,-480.0,0.00014246,2]
[383258915,1756895446441,-480.0,0.00014246,2]
[383258917,1756895446450,-480.0,0.00014246,2]
[383258919,1756895446459,-480.0,0.00014246,2]
[383258921,1756895446469,-506.71877065,0.00014246,2]
[383258923,1756895446478,-500.0,0.00014324,2]
[383258925,1756895446488,-646.0,0.0001441,2]
[383258927,1756895446497,-372.894,0.0001441,2]
[383258929,1756895446506,-452.38182909,0.00014415,2]
[383258931,1756895446515,-423.777,0.00014416,2]
[383258933,1756895446524,-48661.79211639,0.000145,2]
[383258935,1756895446533,-480.0,0.0001452,2]
[383258936,1756895446542,-480.0,0.0001452,2]
[383258938,1756895446551,-480.0,0.0001452,2]
[383258940,1756895446561,-480.0,0.0001452,2]
[383258942,1756895446571,-259.67,0.0001452,2]
[383258944,1756895446580,-480.0,0.0001452,2]
[383258947,1756895446590,-221.92,0.0001452,2]
[383258948,1756895446601,-480.0,0.0001452,2]
[383258950,1756895446610,-406.13,0.0001452,2]
[383258952,1756895446624,-480.0,0.0001452,2]
[383258954,1756895446634,-480.0,0.0001452,2]
[383258956,1756895446644,-480.0,0.0001452,2]
[383258958,1756895446654,-480.0,0.0001452,2]
[383258960,1756895446663,-480.0,0.0001452,2]
[383258962,1756895446672,-480.0,0.0001452,2]
[383258964,1756895446681,-480.0,0.0001452,2]
[383258966,1756895446692,-480.0,0.0001452,2]
[383258968,1756895446701,-734.32,0.0001452,2]
[383258970,1756895446710,-480.0,0.0001452,2]
[383258972,1756895446719,-480.0,0.0001452,2]
[383258974,1756895446729,-613.24,0.0001452,2]
[383258976,1756895446738,-329.0,0.0001452,2]
[383258978,1756895446747,-480.0,0.0001452,2]
[383258980,1756895446756,-1780.23,0.0001452,2]
[383258982,1756895446764,-480.0,0.0001452,2]
[383258984,1756895446773,-480.0,0.0001452,2]
[383258986,1756895446782,-480.0,0.0001452,2]
[383258988,1756895446791,-480.0,0.0001452,2]
[383258990,1756895446800,-740.92,0.0001452,2]
[383258991,1756895446809,-480.0,0.0001452,2]
[383258993,1756895446819,-480.0,0.0001452,2]
[383258995,1756895446828,-480.0,0.0001452,2]
[383258997,1756895446838,-480.0,0.0001452,2]
[383258999,1756895446847,-480.0,0.0001452,2]
[383259001,1756895446856,-480.0,0.0001452,2]
[383259003,1756895446865,-557.66,0.0001452,2]
[383259005,1756895446875,-480.0,0.0001452,2]
[383259007,1756895446884,-389.07,0.0001452,2]
[383259009,1756895446893,-480.0,0.0001452,2]
[383259011,1756895446903,-480.0,0.0001452,2]
[383259013,1756895446912,-568.38,0.0001452,2]
[383259015,1756895446921,-480.0,0.0001452,2]
[383259017,1756895446930,-480.0,0.0001452,2]
[383259019,1756895446939,-480.0,0.0001452,2]
[383259021,1756895446948,-480.0,0.0001452,2]
[383259023,1756895446957,-480.0,0.0001452,2]
[383259025,1756895446966,-480.0,0.0001452,2]
[383259027,1756895446976,-1099.26,0.0001452,2]
[383259029,1756895446986,-480.0,0.0001452,2]
[383259031,1756895446994,-480.0,0.0001452,2]
[383259033,1756895447004,-480.0,0.0001452,2]
[383259034,1756895447017,-480.0,0.0001452,2]
[383259036,1756895447027,-480.0,0.0001452,2]
[383259038,1756895447036,-480.0,0.0001452,2]
[383259040,1756895447051,-480.0,0.0001452,2]
[383259042,1756895447069,-478.77495276,0.0001452,2]
[383259043,1756895447079,-576.94,0.0001452,2]
[383259044,1756895447088,-632.5,0.0001452,2]
[383259045,1756895447097,-480.0,0.0001452,2]
[383259046,1756895447105,-480.0,0.0001452,2]
[383259047,1756895447114,-480.0,0.0001452,2]
[383259048,1756895447123,-607.1,0.0001452,2]
[383259049,1756895447131,-480.0,0.0001452,2]
[383259050,1756895447140,-480.0,0.0001452,2]
[383259051,1756895447149,-480.0,0.0001452,2]
[383259052,1756895447158,-480.0,0.0001452,2]
[383259053,1756895447166,-480.0,0.0001452,2]
[383259054,1756895447175,-480.0,0.0001452,2]
[383259055,1756895447184,-480.0,0.0001452,2]
[383259056,1756895447194,-480.0,0.0001452,2]
[383259058,1756895447203,-480.0,0.0001452,2]
[383259059,1756895447212,-2101.85,0.0001452,2]
[383259061,1756895447222,-556.16,0.0001452,2]
[383259063,1756895447231,-307.43548879,0.0001452,2]
[383259065,1756895447240,-480.0,0.0001452,2]
[383259077,1756895447343,-480.0,0.0001452,2]
[383259080,1756895447364,-480.0,0.0001452,2]
[383259082,1756895447373,-480.0,0.0001452,2]
[383259084,1756895447382,-480.0,0.0001452,2]
[383259085,1756895447392,-1244.44,0.0001452,2]
[383259087,1756895447401,-517.45,0.0001452,2]
[383259089,1756895447410,-480.0,0.0001452,2]
[383259091,1756895447419,-480.0,0.0001452,2]
[383259093,1756895447428,-362.202509,0.0001452,2]
[383259095,1756895447437,-585.11,0.0001452,2]
[383259098,1756895447448,-480.0,0.0001452,2]
[383259099,1756895447457,-2096.4,0.0001452,2]
[383259102,1756895447467,-632.35,0.0001452,2]
[383259103,1756895447477,-480.0,0.0001452,2]
[383259105,1756895447486,-480.0,0.0001452,2]
[383259107,1756895447495,-480.0,0.0001452,2]
[383259109,1756895447504,-480.0,0.0001452,2]
[383259111,1756895447514,-480.0,0.0001452,2]
[383259113,1756895447523,-480.0,0.0001452,2]
[383259115,1756895447532,-480.0,0.0001452,2]
[383259117,1756895447541,-480.0,0.0001452,2]
[383259119,1756895447551,-1172.85,0.0001452,2]
[383259121,1756895447560,-480.0,0.0001452,2]
[383259123,1756895447569,-480.0,0.0001452,2]
[383259125,1756895447578,-480.0,0.0001452,2]
[383259127,1756895447588,-609.86,0.0001452,2]
[383259129,1756895447597,-480.0,0.0001452,2]
[383259132,1756895447607,-480.0,0.0001452,2]
[383259133,1756895447616,-480.0,0.0001452,2]
[383259136,1756895447626,-480.0,0.0001452,2]
[383259137,1756895447636,-480.0,0.0001452,2]
[383259140,1756895447647,-480.0,0.0001452,2]
[383259141,1756895447657,-480.0,0.0001452,2]
[383259144,1756895447667,-950.45,0.0001452,2]
[383259146,1756895447676,-460.0,0.0001452,2]
[383259147,1756895447686,-480.0,0.0001452,2]
[383259150,1756895447696,-480.0,0.0001452,2]
[383259152,1756895447706,-480.0,0.0001452,2]
[383259154,1756895447716,-480.0,0.0001452,2]
[383259156,1756895447726,-480.0,0.0001452,2]
[383259158,1756895447737,-480.0,0.0001452,2]
[383259159,1756895447746,-963.21993475,0.00014525,2]
[383259161,1756895447756,-2264.10087164,0.00014525,2]
[383259164,1756895447765,-151.0,0.00014525,2]
[383259166,1756895447775,-151.0,0.00014525,2]
[383259168,1756895447787,-151.0,0.00014525,2]
[383259170,1756895447796,-151.0,0.00014525,2]
[383259172,1756895447805,-151.0,0.00014525,2]
[383259174,1756895447815,-151.0,0.00014525,2]
[383259176,1756895447825,-151.0,0.00014525,2]
[383259178,1756895447835,-151.0,0.00014525,2]
[383259180,1756895447844,-151.0,0.00014525,2]
[383259182,1756895447854,-151.0,0.00014525,2]
[383259184,1756895447863,-293.79453564,0.00014525,2]
[383259186,1756895447872,-151.0,0.00014525,2]
[383259188,1756895447881,-152.24547723,0.00014525,2]
[383259190,1756895447891,-455.30064549,0.00014525,2]
[383259192,1756895447900,-181.08010149,0.00014525,2]
[383259193,1756895447909,-422.14013964,0.00014568,2]
[383259196,1756895447919,-419.61814517,0.0001458,2]
[383259198,1756895447928,-267.0,0.00014587,2]
[383259200,1756895447937,-267.0,0.00014589,2]
[383259202,1756895447946,-503.58599564,0.0001462,2]
[383259204,1756895447955,-267.0,0.00014711,2]
[383259205,1756895447964,-1500.0,0.00014768,2]
[383259207,1756895447974,-275.8955373,0.00014768,2]
[383259210,1756895447983,-1002.58121701,0.00014774,2]
[383259212,1756895447992,-1000.0,0.00014774,2]
[383259213,1756895448001,-267.0,0.00014774,2]
[383259216,1756895448015,-500.82587803,0.00014786,2]
[383259218,1756895448024,-480.0,0.00014794,2]
[383259220,1756895448033,-480.0,0.00014794,2]
[383259222,1756895448043,-480.0,0.00014794,2]
[383259223,1756895448053,-542.64,0.00014794,2]
[383259225,1756895448062,-480.0,0.00014794,2]
[383259227,1756895448071,-480.0,0.00014794,2]
[383259229,1756895448082,-480.0,0.00014794,2]
[383259232,1756895448093,-480.0,0.00014794,2]
[383259233,1756895448102,-480.0,0.00014794,2]
[383259235,1756895448112,-472.38,0.00014794,2]
[383259238,1756895448121,-200.92,0.00014794,2]
[383259240,1756895448131,-480.0,0.00014794,2]
[383259242,1756895448140,-734.32,0.00014794,2]
[383259244,1756895448150,-588.85776068,0.00014794,2]
[383259246,1756895448159,-480.0,0.00014794,2]
[383259248,1756895448169,-613.24,0.00014794,2]
[383259250,1756895448179,-480.0,0.00014794,2]
[383259251,1756895448188,-1780.23,0.00014794,2]
[383259253,1756895448198,-480.0,0.00014794,2]
[383259256,1756895448207,-480.0,0.00014794,2]
[383259258,1756895448217,-480.0,0.00014794,2]
[383259259,1756895448227,-740.92,0.00014794,2]
[383259262,1756895448237,-480.0,0.00014794,2]
[383259263,1756895448246,-480.0,0.00014794,2]
[383259266,1756895448256,-265.44,0.00014794,2]
[383259268,1756895448266,-480.0,0.00014794,2]
[383259270,1756895448276,-480.0,0.00014794,2]
[383259272,1756895448285,-557.66,0.00014794,2]
[383259273,1756895448295,-480.0,0.00014794,2]
[383259276,1756895448304,-480.0,0.00014794,2]
[383259277,1756895448314,-480.0,0.00014794,2]
[383259279,1756895448323,-568.38,0.00014794,2]
[383259282,1756895448332,-480.0,0.00014794,2]
[383259284,1756895448342,-480.0,0.00014794,2]
[383259286,1756895448351,-480.0,0.00014794,2]
[383259288,1756895448361,-480.0,0.00014794,2]
[383259290,1756895448371,-1099.26,0.00014794,2]
[383259292,1756895448380,-480.0,0.00014794,2]
[383259294,1756895448389,-480.0,0.00014794,2]
[383259296,1756895448399,-611.54,0.00014794,2]
[383259298,1756895448408,-480.0,0.00014794,2]
[383259300,1756895448417,-160.0,0.00014794,2]
[383259301,1756895448426,-480.0,0.00014794,2]
[383259304,1756895448436,-632.5,0.00014794,2]
[383259306,1756895448445,-480.0,0.00014794,2]
[383259307,1756895448455,-480.0,0.00014794,2]
[383259309,1756895448464,-607.1,0.00014794,2]
[383259311,1756895448474,-480.0,0.00014794,2]
[383259313,1756895448483,-480.0,0.00014794,2]
[383259315,1756895448492,-480.0,0.00014794,2]
[383259317,1756895448502,-337.07160217,0.00014794,2]
[383259319,1756895448511,-192.52660356,0.00014794,2]
[383259322,1756895448521,-480.0,0.00014794,2]
[383259323,1756895448530,-2101.85,0.00014794,2]
[383259325,1756895448540,-556.16,0.00014794,2]
[383259327,1756895448550,-480.0,0.00014794,2]
[383259329,1756895448560,-480.0,0.00014794,2]
[383259331,1756895448573,-480.0,0.00014794,2]
[383259333,1756895448583,-480.0,0.00014794,2]
[383259336,1756895448592,-1244.44,0.00014794,2]
[383259337,1756895448602,-480.0,0.00014794,2]
[383259340,1756895448612,-480.0,0.00014794,2]
[383259342,1756895448621,-2096.4,0.00014794,2]
[383259344,1756895448631,-632.35,0.00014794,2]
[383259346,1756895448643,-480.0,0.00014794,2]
[383259347,1756895448652,-480.0,0.00014794,2]
[383259349,1756895448661,-480.0,0.00014794,2]
[383259352,1756895448671,-480.0,0.00014794,2]
[383259354,1756895448681,-275.88415978,0.00014794,2]
[383259356,1756895448690,-480.0,0.00014794,2]
[383259358,1756895448700,-1172.85,0.00014794,2]
[383259360,1756895448709,-480.0,0.00014794,2]
[383259362,1756895448718,-480.0,0.00014794,2]
[383259364,1756895448728,-274.37860939,0.00014794,2]
[383259366,1756895448737,-609.86,0.00014794,2]
[383259368,1756895448747,-480.0,0.00014794,2]
[383259370,1756895448756,-480.0,0.00014794,2]
[383259372,1756895448765,-480.0,0.00014794,2]
[383259374,1756895448774,-480.0,0.00014794,2]
[383259376,1756895448783,-480.0,0.00014794,2]
[383259378,1756895448792,-480.0,0.00014794,2]
[383259380,1756895448801,-480.0,0.00014794,2]
[383259382,1756895448811,-950.45,0.00014794,2]
[383259384,1756895448819,-480.0,0.00014794,2]
[383259386,1756895448830,-480.0,0.00014794,2]
[383259388,1756895448839,-480.0,0.00014794,2]
[383259390,1756895448848,-184.357339,0.00014794,2]
[383259392,1756895448857,-480.0,0.00014794,2]
[383259394,1756895448866,-480.0,0.00014794,2]
[383259396,1756895448875,-485.764652,0.00014794,2]
[383259398,1756895448884,-485.764652,0.00014794,2]
[383259400,1756895448893,-267.0,0.00014798,2]
[383259402,1756895448902,-267.0,0.00014819,2]
[383259404,1756895448912,-267.0,0.00014851,2]
[383259406,1756895448921,-359.81091253,0.00014872,2]
[383259408,1756895448930,-420.0,0.00014902,2]
[383259410,1756895448939,-250.37229285,0.00014931,2]
[383259412,1756895448949,-160.0,0.00015,2]
[383259414,1756895448958,-267.0,0.00015012,2]
[383259416,1756895448967,-267.0,0.00015016,2]
[383259418,1756895448976,-480.0,0.00015068,2]
[383259420,1756895448985,-196.58,0.00015068,2]
[383259422,1756895448995,-480.0,0.00015068,2]
[383259424,1756895449004,-452.97,0.00015068,2]
[383259426,1756895449017,-480.0,0.00015068,2]
[383259428,1756895449026,-480.0,0.00015068,2]
[383259430,1756895449035,-607.05,0.00015068,2]
[383259432,1756895449044,-480.0,0.00015068,2]
[383259434,1756895449054,-543.38,0.00015068,2]
[383259436,1756895449063,-734.32,0.00015068,2]
[383259438,1756895449073,-480.0,0.00015068,2]
[383259440,1756895449083,-613.24,0.00015068,2]
[383259442,1756895449092,-480.0,0.00015068,2]
[383259444,1756895449104,-1780.23,0.00015068,2]
[383259446,1756895449113,-480.0,0.00015068,2]
[383259448,1756895449123,-480.0,0.00015068,2]
[383259450,1756895449133,-480.0,0.00015068,2]
[383259453,1756895449142,-740.92,0.00015068,2]
[383259454,1756895449152,-480.0,0.00015068,2]
[383259457,1756895449161,-480.0,0.00015068,2]
[383259458,1756895449171,-480.0,0.00015068,2]
[383259461,1756895449180,-480.0,0.00015068,2]
[383259462,1756895449190,-557.66,0.00015068,2]
[383259464,1756895449199,-480.0,0.00015068,2]
[383259467,1756895449209,-278.48,0.00015068,2]
[383259469,1756895449218,-568.38,0.00015068,2]
[383259470,1756895449227,-480.0,0.00015068,2]
[383259473,1756895449238,-480.0,0.00015068,2]
[383259475,1756895449247,-584.2,0.00015068,2]
[383259477,1756895449257,-306.37,0.00015068,2]
[383259479,1756895449267,-1099.26,0.00015068,2]
[383259481,1756895449276,-480.0,0.00015068,2]
[383259483,1756895449285,-480.0,0.00015068,2]
[383259485,1756895449295,-480.0,0.00015068,2]
[383259486,1756895449304,-632.5,0.00015068,2]
[383259488,1756895449314,-480.0,0.00015068,2]
[383259490,1756895449323,-607.1,0.00015068,2]
[383259492,1756895449332,-480.0,0.00015068,2]
[383259494,1756895449341,-480.0,0.00015068,2]
[383259497,1756895449350,-480.0,0.00015068,2]
[383259499,1756895449362,-471.66705573,0.00015068,2]
[383259501,1756895449371,-2101.85,0.00015068,2]
[383259502,1756895449380,-556.16,0.00015068,2]
[383259504,1756895449389,-480.0,0.00015068,2]
[383259506,1756895449399,-480.0,0.00015068,2]
[383259509,1756895449408,-480.0,0.00015068,2]
[383259510,1756895449417,-480.0,0.00015068,2]
[383259512,1756895449427,-1244.44,0.00015068,2]
[383259514,1756895449436,-480.0,0.00015068,2]
[383259517,1756895449446,-480.0,0.00015068,2]
[383259519,1756895449457,-2096.4,0.00015068,2]
[383259521,1756895449466,-632.35,0.00015068,2]
[383259523,1756895449476,-426.23889724,0.00015068,2]
[383259525,1756895449486,-480.0,0.00015068,2]
[383259527,1756895449495,-480.0,0.00015068,2]
[383259529,1756895449504,-535.11,0.00015068,2]
[383259531,1756895449513,-1172.85,0.00015068,2]
[383259533,1756895449523,-480.0,0.00015068,2]
[383259535,1756895449532,-480.0,0.00015068,2]
[383259537,1756895449541,-609.86,0.00015068,2]
[383259549,1756895449649,-495.43,0.00015068,2]
[383259551,1756895449660,-480.0,0.00015068,2]
[383259553,1756895449669,-480.0,0.00015068,2]
[383259555,1756895449679,-480.0,0.00015068,2]
[383259557,1756895449688,-480.0,0.00015068,2]
[383259559,1756895449698,-950.45,0.00015068,2]
[383259561,1756895449706,-181.42,0.00015068,2]
[383259563,1756895449715,-480.0,0.00015068,2]
[383259565,1756895449725,-480.0,0.00015068,2]
[383259567,1756895449735,-480.0,0.00015068,2]
[383259569,1756895449744,-267.0,0.00015139,2]
[383259571,1756895449753,-155.391365,0.00015179,7]
[383259573,1756895449762,-267.0,0.00015181,2]
[383259575,1756895449772,-2000.0,0.00015316,2]
[383259577,1756895449781,-1500.0,0.00015321,2]
[383259579,1756895449790,-267.0,0.0001534,2]
[383259581,1756895449799,-480.0,0.00015342,2]
[383259583,1756895449808,-480.0,0.00015342,2]
[383259585,1756895449818,-480.0,0.00015342,2]
[383259587,1756895449826,-480.0,0.00015342,2]
[383259589,1756895449835,-480.0,0.00015342,2]
[383259591,1756895449844,-734.32,0.00015342,2]
[383259593,1756895449853,-480.0,0.00015342,2]
[383259595,1756895449863,-613.24,0.00015342,2]
[383259597,1756895449872,-480.0,0.00015342,2]
[383259599,1756895449881,-1780.23,0.00015342,2]
[383259601,1756895449890,-480.0,0.00015342,2]
[383259603,1756895449900,-480.0,0.00015342,2]
[383259605,1756895449912,-740.92,0.00015342,2]
[383259607,1756895449921,-270.01709552,0.00015342,2]
[383259609,1756895449930,-480.0,0.00015342,2]
[383259611,1756895449939,-480.0,0.00015342,2]
[383259613,1756895449948,-305.90905264,0.00015342,2]
[383259615,1756895449957,-557.66,0.00015342,2]
[383259617,1756895449967,-546.6,0.00015342,2]
[383259619,1756895449976,-568.38,0.00015342,2]
[383259621,1756895449985,-506.41,0.00015342,2]
[383259623,1756895449995,-480.0,0.00015342,2]
[383259625,1756895450004,-1099.26,0.00015342,2]
[383259627,1756895450017,-480.0,0.00015342,2]
[383259629,1756895450026,-480.0,0.00015342,2]
[383259631,1756895450035,-480.0,0.00015342,2]
[383259633,1756895450045,-632.5,0.00015342,2]
[383259635,1756895450055,-480.0,0.00015342,2]
[383259637,1756895450064,-607.1,0.00015342,2]
[383259639,1756895450073,-480.0,0.00015342,2]
[383259641,1756895450082,-480.0,0.00015342,2]
[383259643,1756895450091,-480.0,0.00015342,2]
[383259645,1756895450101,-2101.85,0.00015342,2]
[383259647,1756895450109,-556.16,0.00015342,2]
[383259649,1756895450119,-480.0,0.00015342,2]
[383259651,1756895450127,-480.0,0.00015342,2]
[383259653,1756895450136,-480.0,0.00015342,2]
[383259655,1756895450144,-480.0,0.00015342,2]
[383259657,1756895450153,-1244.44,0.00015342,2]
[383259659,1756895450163,-154.860093,0.00015342,2]
[383259661,1756895450171,-444.98,0.00015342,2]
[383259663,1756895450180,-2096.4,0.00015342,2]
[383259665,1756895450189,-632.35,0.00015342,2]
[383259668,1756895450198,-480.0,0.00015342,2]
[383259669,1756895450207,-480.0,0.00015342,2]
[383259671,1756895450216,-152.332356,0.00015342,2]
[383259673,1756895450225,-1172.85,0.00015342,2]
[383259675,1756895450234,-480.0,0.00015342,2]
[383259677,1756895450243,-609.86,0.00015342,2]
[383259679,1756895450251,-480.0,0.00015342,2]
[383259681,1756895450261,-480.0,0.00015342,2]
[383259683,1756895450269,-480.0,0.00015342,2]
[383259685,1756895450277,-950.45,0.00015342,2]
[383259687,1756895450285,-480.0,0.00015342,2]
[383259689,1756895450292,-532.22,0.00015342,2]
[383259692,1756895450301,-480.0,0.00015342,2]
[383259694,1756895450308,-267.0,0.00015362,2]
[383259696,1756895450316,-720.0,0.00015368,2]
[383259698,1756895450325,-160.0,0.0001537,2]
[383259700,1756895450332,-267.0,0.00015389,2]
[383259702,1756895450341,-500.0,0.00015389,2]
[383259704,1756895450350,-155.391365,0.00015439,7]
[383259706,1756895450360,-267.0,0.00015503,2]
[383259708,1756895450369,-3861.0530274,0.00015533,2]
[383259710,1756895450378,-267.0,0.00015573,2]
[383259712,1756895450387,-480.0,0.00015616,2]
[383259714,1756895450397,-480.0,0.00015616,2]
[383259716,1756895450406,-480.0,0.00015616,2]
[383259718,1756895450416,-480.0,0.00015616,2]
[383259720,1756895450425,-480.0,0.00015616,2]
[383259722,1756895450435,-734.32,0.00015616,2]
[383259724,1756895450444,-480.0,0.00015616,2]
[383259726,1756895450454,-613.24,0.00015616,2]
[383259728,1756895450464,-480.0,0.00015616,2]
[383259730,1756895450473,-1780.23,0.00015616,2]
[383259732,1756895450482,-480.0,0.00015616,2]
[383259734,1756895450491,-480.0,0.00015616,2]
[383259736,1756895450500,-740.92,0.00015616,2]
[383259738,1756895450509,-480.0,0.00015616,2]
[383259740,1756895450519,-241.02,0.00015616,2]
[383259742,1756895450528,-557.66,0.00015616,2]
[383259744,1756895450537,-568.38,0.00015616,2]
[383259746,1756895450546,-323.8,0.00015616,2]
[383259748,1756895450555,-1099.26,0.00015616,2]
[383259750,1756895450565,-480.0,0.00015616,2]
[383259752,1756895450574,-480.0,0.00015616,2]
[383259754,1756895450583,-473.53301101,0.00015616,2]
[383259756,1756895450592,-632.5,0.00015616,2]
[383259758,1756895450601,-480.0,0.00015616,2]
[383259760,1756895450612,-607.1,0.00015616,2]
[383259763,1756895450629,-564.32300867,0.00015616,2]
[383259765,1756895450643,-480.0,0.00015616,2]
[383259768,1756895450656,-2101.85,0.00015616,2]
[383259770,1756895450667,-556.16,0.00015616,2]
[383259772,1756895450682,-480.0,0.00015616,2]
[383259775,1756895450696,-480.0,0.00015616,2]
[383259777,1756895450709,-480.0,0.00015616,2]
[383259780,1756895450722,-480.0,0.00015616,2]
[383259783,1756895450737,-1244.44,0.00015616,2]
[383259785,1756895450751,-2096.4,0.00015616,2]
[383259787,1756895450763,-632.35,0.00015616,2]
[383259790,1756895450776,-353.14,0.00015616,2]
[383259792,1756895450789,-480.0,0.00015616,2]
[383259795,1756895450802,-1172.85,0.00015616,2]
[383259797,1756895450814,-480.18,0.00015616,2]
[383259799,1756895450827,-609.86,0.00015616,2]
[383259801,1756895450837,-480.0,0.00015616,2]
[383259804,1756895450849,-480.0,0.00015616,2]
[383259806,1756895450860,-385.6,0.00015616,2]
[383259808,1756895450873,-950.45,0.00015616,2]
[383259811,1756895450886,-295.25,0.00015616,2]
[383259813,1756895450899,-267.0,0.00015644,2]
[383259816,1756895450913,-267.0,0.00015698,2]
[383259818,1756895450927,-267.0,0.00015734,2]
[383259821,1756895450941,-987.46534504,0.00015787,2]
[383259823,1756895450953,-267.0,0.00015791,2]
[383259825,1756895450963,-267.0,0.00015796,2]
[383259827,1756895450974,-1036.1979576,0.00015841,2]
[383259830,1756895450987,-2500.0,0.00015864,2]
[383259832,1756895451001,-1148.4719902,0.00015868,2]
[383259835,1756895451017,-2000.0,0.00015869,2]
[383259837,1756895451027,-480.0,0.0001589,2]
[383259839,1756895451038,-151.0,0.0001589,2]
[383259841,1756895451050,-480.0,0.0001589,2]
[383259844,1756895451065,-480.0,0.0001589,2]
[383259846,1756895451078,-480.0,0.0001589,2]
[383259848,1756895451089,-639.57039136,0.0001589,2]
[383259851,1756895451100,-480.0,0.0001589,2]
[383259853,1756895451111,-178.50501795,0.0001589,2]
[383259855,1756895451123,-734.32,0.0001589,2]
[383259857,1756895451135,-480.0,0.0001589,2]
[383259859,1756895451146,-613.24,0.0001589,2]
[383259862,1756895451158,-611.56509437,0.0001589,2]
[383259864,1756895451169,-1780.23,0.0001589,2]
[383259866,1756895451180,-480.0,0.0001589,2]
[383259868,1756895451192,-480.0,0.0001589,2]
[383259870,1756895451203,-740.92,0.0001589,2]
[383259871,1756895451215,-480.0,0.0001589,2]
[383259872,1756895451226,-557.66,0.0001589,2]
[383259873,1756895451238,-568.38,0.0001589,2]
[383259874,1756895451249,-500.0,0.0001589,2]
[383259875,1756895451261,-1099.26,0.0001589,2]
[383259876,1756895451272,-480.0,0.0001589,2]
[383259877,1756895451284,-151.0,0.0001589,2]
[383259878,1756895451295,-480.0,0.0001589,2]
[383259879,1756895451306,-201.414707,0.0001589,2]
[383259880,1756895451318,-201.414707,0.0001589,2]
[383259882,1756895451331,-201.414707,0.0001589,2]
[383259884,1756895451342,-227.55011097,0.0001589,2]
[383259886,1756895451354,-201.414707,0.0001589,2]
[383259888,1756895451366,-2558.28156543,0.0001589,2]
[383259891,1756895451378,-151.0,0.0001589,2]
[383259893,1756895451389,-151.0,0.0001589,2]
[383259895,1756895451400,-151.0,0.0001589,2]
[383259897,1756895451412,-632.5,0.0001589,2]
[383259899,1756895451424,-336.868006,0.0001589,2]
[383259902,1756895451436,-336.868006,0.0001589,2]